bitfinex/quotes_BTCUSD_20260308
["timestamp","ask_amount","ask_price","bid_price","bid_amount"]
[1772975526910,0.00575,67295.0,67283.0,0.02154046]
[1772975527678,0.07576981,67304.0,67284.0,0.07431187]
[1772975527877,0.01533699,67303.0,67285.0,0.00532384]
[1772975528135,0.08962814,67303.0,67284.0,0.07446227]
[1772975528480,0.08962814,67303.0,67286.0,0.00533081]
[1772975528817,0.08962814,67303.0,67287.0,0.01991006]
[1772975529527,0.08962814,67303.0,67288.0,0.00521174]
[1772975529731,0.08962814,67303.0,67289.0,0.02139006]
[1772975530090,0.08962814,67303.0,67290.0,0.07430524]
[1772975530489,0.07429212,67302.0,67290.0,0.07430524]
[1772975532951,0.07549422,67300.0,67290.0,0.07430524]
[1772975533153,0.0012,67300.0,67290.0,0.07430524]
[1772975534170,0.0754953,67300.0,67290.0,0.07430524]
[1772975534753,0.0012,67300.0,67290.0,0.07430524]
[1772975535140,0.0012,67300.0,67286.0,0.07445936]
[1772975535141,0.07549421,67300.0,67286.0,0.07445936]
[1772975535345,0.07549421,67300.0,67275.0,0.22739342]
[1772975535346,1.810661,67299.0,67276.0,0.07457906]
[1772975535551,1.810661,67299.0,67276.0,0.05457906]
[1772975535552,1.358557,67299.0,67276.0,0.05457906]
[1772975535781,0.01972782,67299.0,67276.0,0.05457906]
[1772975535987,0.01972782,67297.0,67276.0,0.05457906]
[1772975536180,0.01530571,67294.0,67276.0,0.05457906]
[1772975536425,0.01530571,67291.0,67274.0,0.07432075]
[1772975536631,0.01530571,67289.0,67276.0,0.0002]
[1772975537304,0.01543451,67289.0,67276.0,0.0002]
[1772975538080,0.01543451,67289.0,67270.0,0.07452628]
[1772975538081,0.01972782,67288.0,67270.0,0.07452628]
[1772975538277,0.0001288,67289.0,67270.0,0.07452628]
[1772975538278,0.01972782,67284.0,67270.0,0.07452628]
[1772975538477,0.01678571,67283.0,67270.0,0.07452628]
[1772975541335,0.07431408,67282.0,67270.0,0.07452628]
[1772975542099,0.08961979,67282.0,67270.0,0.07452628]
[1772975542651,0.08761979,67282.0,67270.0,0.07452628]
[1772975543433,0.01530571,67281.0,67270.0,0.07452628]
[1772975546628,0.01530571,67279.0,67269.0,0.00168]
[1772975546844,0.01530571,67278.0,67269.0,0.00168]
[1772975547065,0.01530571,67278.0,67269.0,0.0002]
[1772975547263,0.01530571,67278.0,67269.0,0.00168]
[1772975547898,0.07431583,67281.0,67269.0,0.00168]
[1772975548106,0.07431583,67281.0,67270.0,0.03547375]
[1772975549200,0.07431739,67279.0,67271.0,0.07432623]
[1772975549405,0.07431739,67279.0,67274.0,0.00015]
[1772975549802,0.0896231,67279.0,67274.0,0.00015]
[1772975550536,0.07431739,67279.0,67274.0,0.00015]
[1772975551311,0.01530571,67280.0,67274.0,0.00015]
[1772975551746,0.01530571,67278.0,67274.0,0.00015]
[1772975552395,0.01530571,67276.0,67251.0,0.0002]
[1772975552624,0.01530571,67276.0,67256.0,1e-08]
[1772975552625,2.580048,67276.0,67256.0,1e-08]
[1772975552798,1.765808,67276.0,67256.0,1e-08]
[1772975553036,0.01973938,67274.0,67256.0,1e-08]
[1772975553246,0.01973938,67270.0,67256.0,1e-08]
[1772975553466,0.07432954,67268.0,67256.0,1e-08]
[1772975553667,0.07432954,67268.0,67256.0,0.00100001]
[1772975553873,0.01530571,67267.0,67256.0,0.00100001]
[1772975554002,0.01530571,67267.0,67256.0,1e-08]
[1772975554003,0.01530571,67266.0,67256.0,1e-08]
[1772975554212,0.01530571,67264.0,67256.0,1e-08]
[1772975554414,0.01530571,67262.0,67256.0,0.00039721]
[1772975555673,0.01530571,67260.0,67256.0,0.00039721]
[1772975556312,0.01530571,67260.0,67252.0,1e-08]
[1772975557692,0.0896463,67258.0,67252.0,1e-08]
[1772975558001,0.01678571,67257.0,67252.0,1e-08]
[1772975560214,0.00148,67257.0,67252.0,1e-08]
[1772975561147,0.00200002,67256.0,67252.0,1e-08]
[1772975561576,0.00148,67259.0,67252.0,1e-08]
[1772975562386,0.07434059,67258.0,67252.0,1e-08]
[1772975563691,0.00148,67261.0,67252.0,0.07434724]
[1772975564612,0.07433838,67260.0,67252.0,0.07434724]
[1772975564771,0.07433838,67260.0,67252.0,1e-08]
[1772975567300,0.07433838,67260.0,67257.0,0.00015]
[1772975568784,0.01559978,67259.0,67252.0,1e-08]
[1772975568933,0.01559978,67259.0,67246.0,0.0004198]
[1772975568934,0.01973938,67259.0,67246.0,0.0004198]
[1772975569125,0.01559978,67258.0,67246.0,0.07489249]
[1772975569477,0.0743417,67257.0,67246.0,0.00053894]
[1772975570541,0.0743417,67257.0,67249.0,0.0002]
[1772975570878,0.08994148,67257.0,67249.0,0.0002]
[1772975571235,0.08994148,67257.0,67180.0,0.001]
[1772975571236,0.0743417,67257.0,67180.0,0.001]
[1772975571442,0.0743417,67257.0,65394.0,0.03629272]
[1772975571443,0.0743417,67257.0,67150.0,0.0012]
[1772975571444,0.00575,67187.0,67150.0,0.0012]
[1772975571659,0.00575,67187.0,67140.0,0.001]
[1772975571660,0.98003815,67143.0,67140.0,8.72e-05]
[1772975572002,0.98003815,67143.0,67135.0,0.01827882]
[1772975572003,0.95995095,67136.0,67135.0,0.01827882]
[1772975572305,0.24264798,67134.0,67124.0,0.0154099]
[1772975572490,0.24264798,67134.0,67121.0,0.07449126]
[1772975572491,0.11721999,67132.0,67122.0,0.01827882]
[1772975572689,0.11721999,67132.0,67123.0,0.01827882]
[1772975572690,0.14738366,67131.0,67123.0,0.01827882]
[1772975572906,0.14738366,67130.0,67123.0,0.01827882]
[1772975573135,0.11729057,67132.0,67120.0,0.07449187]
[1772975573136,0.14886366,67129.0,67120.0,0.07449187]
[1772975573273,7.058e-05,67132.0,67112.0,0.0745017]
[1772975573274,0.24249621,67125.0,67112.0,0.0745017]
[1772975573477,0.03714141,67136.0,67112.0,0.07598232]
[1772975573700,0.00148,67153.0,67114.0,0.23659316]
[1772975573905,0.00148,67153.0,67113.0,0.03234816]
[1772975574107,0.00148,67153.0,67117.0,0.58675]
[1772975574303,0.07445873,67152.0,67136.0,0.01827882]
[1772975574499,0.00148,67153.0,67136.0,0.01827882]
[1772975574842,0.00148,67153.0,67118.0,0.0154099]
[1772975574843,0.07486098,67150.0,67118.0,0.0154099]
[1772975575037,0.01973938,67149.0,67121.0,0.01827882]
[1772975575261,0.07486098,67150.0,67092.0,0.03165797]
[1772975575447,0.01559978,67122.0,67092.0,0.07492195]
[1772975575645,0.01559978,67118.0,67093.0,0.01827882]
[1772975575814,0.03533916,67116.0,67093.0,0.01827882]
[1772975576018,0.01559978,67116.0,67093.0,0.01827882]
[1772975576365,0.0004,67125.0,67092.0,0.07492195]
[1772975576366,0.01973938,67111.0,67092.0,0.00039792]
[1772975576582,0.01973938,67109.0,67093.0,0.07452342]
[1772975576725,0.01559978,67106.0,67093.0,0.07452342]
[1772975576927,0.01973938,67103.0,67092.0,0.07492168]
[1772975577244,0.07451484,67101.0,67092.0,0.00023104]
[1772975577449,0.07599564,67100.0,67080.0,0.001]
[1772975577649,0.07451564,67100.0,67082.0,0.07493298]
[1772975577942,0.00148,67099.0,67083.0,0.01827882]
[1772975578157,0.07451009,67105.0,67093.0,0.001]
[1772975578453,0.07451009,67107.0,67082.0,0.07493298]
[1772975578689,0.01707978,67106.0,67083.0,0.01827882]
[1772975579043,0.00148,67105.0,67083.0,0.01827882]
[1772975579213,0.00148,67105.0,67082.0,0.07493298]
[1772975579419,0.00148,67105.0,67083.0,0.01827882]
[1772975579420,0.01559978,67103.0,67083.0,0.01827882]
[1772975579631,0.01973938,67102.0,67083.0,0.01827882]
[1772975579841,0.00148,67102.0,67083.0,0.01827882]
[1772975580059,0.00148,67102.0,67080.0,0.07553564]
[1772975580060,0.00148,67102.0,67079.0,0.08028564]
[1772975580061,0.0745112,67104.0,67033.0,0.01827882]
[1772975580062,0.0017,67049.0,67033.0,0.01827882]
[1772975580267,0.00158,67049.0,67040.0,0.00039846]
[1772975580476,0.02422633,67068.0,67040.0,0.00039846]
[1772975580477,0.01973938,67074.0,67041.0,0.01827882]
[1772975580633,0.01973938,67069.0,67041.0,0.01827882]
[1772975580854,0.01973938,67067.0,67041.0,0.01827882]
[1772975581059,0.02125938,67066.0,67040.0,0.00039846]
[1772975581395,0.07455898,67061.0,67041.0,0.07458122]
[1772975581597,0.03533916,67062.0,67041.0,0.07458122]
[1772975581598,0.01559978,67062.0,67041.0,0.07458122]
[1772975581723,0.02422633,67084.0,67041.0,0.07458122]
[1772975581724,0.01559978,67071.0,67042.0,0.01827882]
[1772975581941,0.07454453,67074.0,67041.0,0.07458122]
[1772975581942,0.02125938,67070.0,67041.0,0.07558122]
[1772975582165,0.01559978,67067.0,67041.0,0.07558122]
[1772975582376,0.03533916,67066.0,67042.0,0.01827882]
[1772975582974,0.0004,67075.0,67044.0,0.0154099]
[1772975583214,0.07454453,67074.0,67027.0,0.0154099]
[1772975583483,0.43455552,67065.0,67034.0,0.07458901]
[1772975583696,0.00152,67064.0,67034.0,0.07458901]
[1772975584304,0.07454122,67077.0,67035.0,0.624964]
[1772975584504,0.00152,67073.0,67034.0,0.07458901]
[1772975584673,0.00039723,67074.0,67035.0,0.392874]
[1772975585060,0.00039723,67074.0,67043.0,0.03449683]
[1772975585259,0.00039723,67074.0,67045.0,0.07457677]
[1772975586003,0.00191723,67074.0,67045.0,0.07457677]
[1772975586228,0.00176723,67074.0,67045.0,0.07457677]
[1772975586433,0.00024723,67074.0,67049.0,0.0190815]
[1772975586640,0.00024723,67074.0,67016.0,0.07460863]
[1772975586641,0.07454564,67073.0,67016.0,0.07460863]
[1772975586897,0.02083227,67047.0,67003.0,0.07462277]
[1772975587089,0.02030271,67048.0,67004.0,0.0190815]
[1772975587090,0.374129,67042.0,67004.0,0.0190815]
[1772975587299,0.003878,67045.0,67004.0,0.0190815]
[1772975587300,0.145935,67041.0,67004.0,0.0205615]
[1772975587502,0.03983849,67038.0,67006.0,0.0190815]
[1772975587738,0.24907,67039.0,67006.0,0.0190815]
[1772975587941,0.24907,67039.0,67005.0,0.07462129]
[1772975588156,0.24907,67039.0,67006.0,0.00011914]
[1772975588369,1.5102,67037.0,67006.0,0.00011914]
[1772975588573,1.5102,67034.0,67006.0,0.00011914]
[1772975588776,0.074579,67043.0,67006.0,0.00011914]
[1772975588777,1.51172,67033.0,67006.0,0.00011914]
[1772975588978,0.00152,67032.0,67006.0,0.00011914]
[1772975589198,0.074579,67043.0,67005.0,0.001]
[1772975589199,1.5102,67041.0,67005.0,0.001]
[1772975589400,0.07610233,67040.0,67006.0,0.07462018]
[1772975589616,1.5102,67039.0,67006.0,0.07462018]
[1772975589825,0.01900622,67037.0,67007.0,0.0190815]
[1772975590025,0.07458233,67040.0,67007.0,0.0190815]
[1772975590026,0.01877086,67033.0,67007.0,0.0190815]
[1772975590308,0.225375,67031.0,67006.0,0.07614018]
[1772975590446,0.01877086,67029.0,67006.0,0.07614018]
[1772975590650,0.01877086,67039.0,67007.0,0.0190815]
[1772975590901,0.00152,67034.0,67007.0,0.0206015]
[1772975591347,0.07458456,67038.0,67008.0,0.07461795]
[1772975591551,0.00152,67036.0,67009.0,0.0190815]
[1772975591961,0.00152,67036.0,67008.0,0.07461795]
[1772975591962,0.07457302,67049.0,67011.0,0.0190815]
[1772975592169,0.02475622,67052.0,67016.0,0.0190815]
[1772975592170,0.00575,67052.0,67016.0,0.0190815]
[1772975592370,0.00575,67052.0,67019.0,0.0078366]
[1772975592601,0.00575,67052.0,67021.0,0.02376678]
[1772975592821,0.07497201,67050.0,67023.0,0.0190815]
[1772975593040,0.0004,67050.0,67024.0,0.00689004]
[1772975593279,0.00575,67052.0,67026.0,0.0190815]
[1772975593483,0.00575,67052.0,67027.0,0.0190815]
[1772975593484,0.09909079,67052.0,67027.0,0.0190815]
[1772975594495,0.09909079,67052.0,67026.0,0.07459791]
[1772975594496,0.07455717,67063.0,67026.0,0.07459791]
[1772975594694,0.00152,67062.0,67028.0,0.0190815]
[1772975594869,0.07455717,67063.0,67029.0,0.00500148]
[1772975595067,0.07455717,67063.0,67033.0,0.00500148]
[1772975595290,0.07455717,67063.0,67034.0,0.0206015]
[1772975595454,0.07455717,67063.0,67011.0,0.0190815]
[1772975595455,0.01900622,67047.0,67011.0,0.0190815]
[1772975595667,0.01877086,67043.0,67011.0,0.01920077]
[1772975595940,0.02029086,67043.0,67011.0,0.01920077]
[1772975596100,0.00152,67042.0,67027.0,0.001]
[1772975596311,0.01877086,67043.0,67028.0,0.00152]
[1772975596513,0.00152,67049.0,67029.0,0.00152]
[1772975596868,0.0004,67050.0,67011.0,0.00111927]
[1772975597047,0.01877086,67048.0,67013.0,0.0190815]
[1772975597255,0.01877086,67048.0,67014.0,0.00152]
[1772975597483,0.07457455,67047.0,67017.0,0.0190815]
[1772975597895,0.07457296,67049.0,67019.0,0.02136976]
[1772975598542,0.00152,67048.0,67020.0,0.00152]
[1772975598733,0.00152,67047.0,67021.0,0.0190815]
[1772975599228,0.01877086,67043.0,67020.0,0.0206015]
[1772975599434,0.07458011,67042.0,67021.0,0.07460348]
[1772975599635,0.07458011,67042.0,67021.0,0.09368498]
[1772975599835,0.07458011,67042.0,67022.0,0.0190815]
[1772975600572,0.01877086,67043.0,67022.0,0.0190815]
[1772975600774,0.07457504,67047.0,67022.0,0.0190815]
[1772975601094,0.0004,67050.0,67022.0,0.0190815]
[1772975601332,0.07497166,67050.0,67023.0,0.0190815]
[1772975601533,0.07497166,67050.0,67025.0,0.0190815]
[1772975601750,0.07497166,67050.0,67024.0,0.07460014]
[1772975601751,0.07497166,67050.0,67027.0,0.0190815]
[1772975601956,0.17430716,67038.0,67028.0,0.0206015]
[1772975602170,0.14449637,67037.0,67028.0,0.0206015]
[1772975602342,0.14449637,67036.0,67028.0,0.0206015]
[1772975602543,0.07497166,67050.0,67028.0,0.0206015]
[1772975603356,0.07497166,67050.0,67028.0,0.00152]
[1772975603581,0.03777708,67047.0,67029.0,0.07459457]
[1772975603803,0.01877086,67046.0,67029.0,0.07459457]
[1772975604251,0.01877086,67044.0,67029.0,0.07459457]
[1772975604456,0.01877086,67043.0,67029.0,0.07459457]
[1772975605508,0.01877086,67043.0,67028.0,0.00152]
[1772975605509,0.07458011,67042.0,67028.0,0.00152]
[1772975605726,0.468662,67039.0,67011.0,0.00011927]
[1772975605920,0.01900622,67037.0,67018.0,0.00152]
[1772975606099,0.00152,67036.0,67018.0,0.00152]
[1772975606317,0.21651589,67036.0,67018.0,0.00152]
[1772975607132,0.01877086,67034.0,67018.0,0.00152]
[1772975607336,0.01877086,67034.0,67018.0,0.07612682]
[1772975607680,0.01877086,67031.0,67017.0,0.0002]
[1772975607885,0.01877086,67030.0,67019.0,0.00152]
[1772975608101,0.01877086,67030.0,67019.0,0.00141728]
[1772975608683,0.01862086,67030.0,67019.0,0.00141728]
[1772975608860,0.01877086,67029.0,67019.0,0.00141728]
[1772975609719,0.07459569,67028.0,67019.0,0.00141728]
[1772975610218,0.07459569,67028.0,67015.0,0.0002]
[1772975610219,0.01900622,67027.0,67015.0,0.0002]
[1772975610426,0.01877086,67026.0,67015.0,0.0002]
[1772975610932,0.01877086,67025.0,67015.0,0.0002]
[1772975611277,0.01877086,67025.0,67015.0,0.6002]
[1772975611607,0.01877086,67025.0,67003.0,0.0748228]
[1772975611608,0.01877086,67022.0,67003.0,0.0748228]
[1772975611808,0.01877086,67022.0,67007.0,0.00031935]
[1772975611809,0.01877086,67018.0,67007.0,0.00031935]
[1772975612577,0.07460459,67020.0,67007.0,0.01940085]
[1772975613121,0.07460459,67020.0,67007.0,0.00031935]
[1772975613340,0.01877086,67017.0,67003.0,0.0002]
[1772975613688,0.01877086,67017.0,67003.0,0.00031928]
[1772975613862,0.0933799,67016.0,67003.0,0.07494244]
[1772975614021,0.07460904,67016.0,67003.0,0.00031928]
[1772975614220,0.01877086,67014.0,67003.0,0.00031928]
[1772975614517,0.14662556,67013.0,67003.0,0.0749426]
[1772975614714,0.07460904,67016.0,67004.0,0.01871228]
[1772975615518,0.07459676,67028.0,67003.0,0.0749426]
[1772975615968,0.01877086,67026.0,67004.0,0.02023228]
[1772975616348,0.01877032,67026.0,67007.0,0.01891228]
[1772975616600,0.01900782,67027.0,67007.0,0.01891228]
[1772975616601,0.01899087,67020.0,67007.0,0.0002]
[1772975616798,0.00022001,67020.0,67008.0,0.01871228]
[1772975617683,0.00022001,67034.0,67007.0,0.0002]
[1772975617880,0.07481006,67034.0,67010.0,0.01871228]
[1772975618117,0.07481006,67034.0,67009.0,0.07461684]
[1772975618118,0.07480914,67034.0,67012.0,0.01871228]
[1772975618317,0.00022001,67034.0,67012.0,0.01871228]
[1772975618804,0.08849774,67049.0,67012.0,0.01871228]
[1772975619140,0.09398014,67050.0,67013.0,1.841922]
[1772975619141,0.07497232,67050.0,67013.0,1.841922]
[1772975619348,0.07497232,67050.0,67011.0,0.00152]
[1772975619349,0.07497163,67050.0,67014.0,0.646147]
[1772975619515,0.07497163,67050.0,67017.0,0.01871228]
[1772975619724,0.07497163,67050.0,67019.0,0.01871228]
[1772975619987,0.07497163,67050.0,67022.0,0.01871228]
[1772975620410,0.01900782,67047.0,67022.0,0.01871228]
[1772975620616,0.01354189,67044.0,67023.0,0.00152]
[1772975620828,0.01354189,67042.0,67024.0,0.01871228]
[1772975621028,0.36,67048.0,67024.0,0.01871228]
[1772975621782,0.07457455,67047.0,67025.0,0.07459903]
[1772975621988,0.01301716,67046.0,67026.0,0.01871228]
[1772975623855,0.07457677,67045.0,67027.0,0.0745968]
[1772975624098,0.07457677,67045.0,67028.0,0.01871228]
[1772975624303,0.08759388,67046.0,67030.0,0.01871228]
[1772975624304,0.08759321,67046.0,67030.0,0.01871228]
[1772975625891,0.07457455,67047.0,67030.0,0.01871228]
[1772975626099,0.0004,67050.0,67030.0,0.01871228]
[1772975626100,0.00575,67052.0,67031.0,0.07459235]
[1772975626316,0.00575,67052.0,67032.0,0.01871228]
[1772975626528,0.0056,67052.0,67032.0,0.01871228]
[1772975626735,0.01230726,67051.0,67031.0,0.07459235]
[1772975626942,0.01230726,67051.0,67032.0,0.01871228]
[1772975627160,0.01230726,67051.0,67031.0,0.07459235]
[1772975627161,0.01230726,67049.0,67033.0,0.00152]
[1772975627378,0.01230726,67049.0,67027.0,0.01871228]
[1772975627379,0.01196084,67046.0,67021.0,0.07460259]
[1772975627598,0.14676676,67051.0,67026.0,0.00152]
[1772975627802,0.01196084,67050.0,67027.0,0.01871228]
[1772975628014,0.01196084,67050.0,67028.0,0.00152]
[1772975628228,0.07457232,67049.0,67030.0,0.01871228]
[1772975628433,0.01196084,67048.0,67030.0,0.01871228]
[1772975630171,0.14666734,67049.0,67032.0,0.01871228]
[1772975630356,0.07457224,67050.0,67032.0,0.01871228]
[1772975631487,0.07457224,67050.0,67036.0,0.01871228]
[1772975631737,0.07479225,67050.0,67037.0,0.04577395]
[1772975631951,0.07479225,67050.0,67040.0,0.11867025]
[1772975632101,0.07479225,67050.0,67041.0,0.14833781]
[1772975632305,0.07479225,67050.0,67042.0,0.14833781]
[1772975632519,0.07479225,67050.0,67043.0,0.14985781]
[1772975632870,0.07479225,67050.0,67044.0,0.14833781]
[1772975633158,0.07479225,67050.0,67045.0,0.14833781]
[1772975633319,0.07479225,67050.0,67046.0,0.14833781]
[1772975633522,0.07479225,67050.0,67047.0,0.14833781]
[1772975633727,0.07479225,67050.0,67043.0,0.00152]
[1772975633923,0.07479225,67050.0,67044.0,0.14832503]
[1772975634185,0.07479225,67050.0,67033.0,0.09330209]
[1772975634186,0.01900782,67049.0,67035.0,0.11865349]
[1772975634387,0.01900782,67049.0,67025.0,0.11860175]
[1772975634388,0.01900782,67049.0,67028.0,0.11867025]
[1772975634598,0.01940494,67049.0,67029.0,0.00152]
[1772975634959,0.01940494,67049.0,67028.0,0.11867025]
[1772975635172,0.01940494,67049.0,67019.0,0.04360369]
[1772975635173,1.47568,67048.0,67016.0,0.25261399]
[1772975635333,0.00191712,67049.0,67017.0,0.00152]
[1772975635334,1.016013,67044.0,67017.0,0.00152]
[1772975635557,0.01900782,67041.0,67017.0,0.00152]
[1772975636239,0.01900782,67039.0,67018.0,0.07460682]
[1772975636558,0.0011394,67039.0,67018.0,0.07460682]
[1772975638212,0.07458456,67038.0,67020.0,0.02415318]
[1772975638436,0.07458456,67038.0,67022.0,0.02415318]
[1772975638437,0.04781865,67038.0,67022.0,0.02415318]
[1772975638647,0.04781865,67038.0,67018.0,0.07460682]
[1772975638648,0.04781865,67038.0,67025.0,0.04305127]
[1772975638931,0.04781865,67038.0,67026.0,0.02415318]
[1772975639330,0.04781865,67038.0,67027.0,0.04246362]
[1772975640354,0.07458456,67041.0,67027.0,0.04246362]
[1772975640484,0.07457719,67045.0,67031.0,0.04246362]
[1772975640679,0.00039712,67049.0,67027.0,0.07459569]
[1772975640680,0.07496948,67049.0,67035.0,0.04246362]
[1772975640938,0.07496948,67049.0,67037.0,0.04246362]
[1772975641095,0.07496948,67049.0,67039.0,0.01872839]
[1772975641292,0.07496948,67049.0,67040.0,0.00152]
[1772975641506,0.07496948,67049.0,67041.0,0.00152]
[1772975641789,0.01900782,67048.0,67030.0,0.04228839]
[1772975642166,0.01900782,67048.0,67027.0,0.07459569]
[1772975642167,0.07496948,67049.0,67031.0,0.02055239]
[1772975642488,0.07496948,67049.0,67033.0,0.04228839]
[1772975642705,0.07496948,67049.0,67034.0,0.06132078]
[1772975642908,0.07496948,67049.0,67035.0,0.04228839]
[1772975643120,0.07481948,67049.0,67035.0,0.04228839]
[1772975643483,0.02704378,67048.0,67032.0,0.07459124]
[1772975644367,0.02704378,67048.0,67032.0,0.11672179]
[1772975644552,0.07457455,67047.0,67032.0,0.11672179]
[1772975644750,0.07457455,67047.0,67033.0,0.00152]
[1772975645356,0.02859294,67046.0,67034.0,0.00152]
[1772975646162,0.02859294,67046.0,67035.0,0.14858136]
[1772975646358,0.02859294,67046.0,67034.0,0.00152]
[1772975646878,0.07457677,67045.0,67034.0,0.00152]
[1772975648583,0.10316971,67045.0,67034.0,0.00152]
[1772975649438,0.0801695,67052.0,67037.0,0.02786622]
[1772975649594,0.0801695,67052.0,67038.0,0.02786622]
[1772975649796,0.0801695,67052.0,67039.0,0.04229105]
[1772975649993,0.00022001,67050.0,67040.0,0.04381105]
[1772975650421,0.02859294,67068.0,67041.0,0.02786622]
[1772975650669,0.0004,67075.0,67040.0,0.00152]
[1772975650670,0.07478566,67057.0,67044.0,0.04229105]
[1772975650850,0.07478566,67057.0,67046.0,0.04229105]
[1772975651043,0.07478566,67057.0,67045.0,0.10244299]
[1772975651044,0.07478566,67057.0,67047.0,0.04381105]
[1772975651275,0.07455996,67061.0,67047.0,0.04381105]
[1772975651480,0.02859294,67060.0,67047.0,0.00152]
[1772975651855,0.07455996,67061.0,67047.0,0.00152]
[1772975652177,0.07455996,67061.0,67047.0,0.04380533]
[1772975652918,0.07455996,67061.0,67048.0,0.07457343]
[1772975653539,0.02859294,67060.0,67048.0,0.07457343]
[1772975654589,0.00022001,67062.0,67049.0,0.0422834]
[1772975654801,0.00022001,67062.0,67051.0,0.0422834]
[1772975655177,0.00022001,67062.0,67052.0,0.07456899]
[1772975655381,0.00022001,67062.0,67053.0,0.02938622]
[1772975655581,0.00022001,67064.0,67054.0,0.04228338]
[1772975656048,0.00022001,67066.0,67054.0,0.04228338]
[1772975656222,0.07476672,67073.0,67055.0,0.02786622]
[1772975656378,0.07476672,67073.0,67058.0,0.04228338]
[1772975656722,0.07476672,67073.0,67061.0,0.04228338]
[1772975656723,0.07476583,67073.0,67061.0,0.04228338]
[1772975656927,0.00022001,67073.0,67063.0,0.04228338]
[1772975657278,0.00022001,67073.0,67065.0,0.04227671]
[1772975657482,0.07476582,67073.0,67065.0,0.04239599]
[1772975658105,0.07476582,67073.0,67065.0,0.00011928]
[1772975659229,0.00022001,67067.0,67065.0,0.00011928]
[1772975659890,0.00022001,67067.0,67065.0,0.04239544]
[1772975660094,7.001e-05,67067.0,67065.0,0.04239544]
[1772975661352,0.07494564,67075.0,67065.0,0.04239544]
[1772975661353,0.00575,67079.0,67068.0,0.04227616]
[1772975661519,0.02859294,67077.0,67062.0,0.07607783]
[1772975661728,0.02859294,67077.0,67062.0,0.07614841]
[1772975663477,0.07454231,67076.0,67062.0,0.07614841]
[1772975663684,0.07454231,67076.0,67062.0,0.11842409]
[1772975663939,0.10313525,67076.0,67062.0,0.11842409]
[1772975664080,0.07454231,67076.0,67062.0,0.11842409]
[1772975664282,0.07454231,67076.0,67062.0,0.07614841]
[1772975664877,0.02859294,67075.0,67062.0,0.07614841]
[1772975665283,0.02859294,67075.0,67062.0,0.11842409]
[1772975666057,0.10313747,67075.0,67062.0,0.11842409]
[1772975666260,0.07454453,67075.0,67062.0,0.07614841]
[1772975666437,0.07454453,67075.0,67063.0,0.04227569]
[1772975667032,0.07476454,67075.0,67063.0,0.04227569]
[1772975668062,0.07476454,67075.0,67064.0,0.07455564]
[1772975668264,0.07476454,67075.0,67064.0,0.11683132]
[1772975668911,0.07476356,67075.0,67065.0,0.04227568]
[1772975670294,0.07476356,67075.0,67066.0,0.07455342]
[1772975670698,0.07476356,67075.0,67067.0,0.04227567]
[1772975670851,0.07476356,67075.0,67068.0,0.04379567]
[1772975671048,0.00575,67079.0,67069.0,0.02786622]
[1772975671254,0.00575,67079.0,67068.0,0.00152]
[1772975671255,0.08028904,67079.0,67070.0,0.04227567]
[1772975671803,0.08028904,67079.0,67068.0,0.00152]
[1772975672420,0.08028904,67079.0,67070.0,0.04227433]
[1772975672976,0.08028927,67079.0,67070.0,0.04227433]
[1772975673198,0.00022001,67080.0,67070.0,0.04227433]
[1772975673405,0.00022001,67080.0,67069.0,0.07455009]
[1772975673406,0.00022001,67080.0,67072.0,0.04227434]
[1772975673628,0.0747557,67082.0,67074.0,0.00651234]
[1772975673629,0.00022001,67082.0,67074.0,0.00651234]
[1772975673964,0.00022001,67082.0,67076.0,0.02439334]
[1772975674113,0.00022001,67082.0,67078.0,0.02439334]
[1772975674519,0.00022001,67082.0,67078.0,0.07454008]
[1772975674767,0.00022001,67082.0,67079.0,0.02439334]
[1772975675006,0.00022001,67082.0,67078.0,0.07454008]
[1772975675007,0.00022001,67082.0,67080.0,0.00152]
[1772975675399,0.0420443,67081.0,67066.0,0.07455342]
[1772975675583,0.07575578,67082.0,67066.0,0.07455342]
[1772975675584,0.07475578,67082.0,67068.0,0.04226949]
[1772975675885,0.00022001,67089.0,67070.0,0.03931713]
[1772975676081,0.0745301,67087.0,67072.0,0.04226949]
[1772975676383,0.0745323,67085.0,67072.0,0.04226949]
[1772975676758,0.0745323,67085.0,67073.0,0.07606564]
[1772975676961,0.001,67082.0,67073.0,0.11681513]
[1772975677190,0.0745323,67085.0,67074.0,0.00152]
[1772975677404,0.0745323,67085.0,67074.0,0.04378949]
[1772975677594,0.0745323,67085.0,67076.0,0.04226949]
[1772975677997,0.0745323,67085.0,67077.0,0.00152]
[1772975678202,0.07475153,67086.0,67078.0,0.02226949]
[1772975678792,0.07475153,67086.0,67079.0,0.00152]
[1772975678964,0.07475153,67086.0,67080.0,0.00152]
[1772975679259,0.07475153,67086.0,67081.0,0.00152]
[1772975679701,0.07475153,67086.0,67082.0,0.00152]
[1772975679855,0.07460153,67086.0,67082.0,0.00152]
[1772975680055,0.07460153,67086.0,67078.0,0.07454007]
[1772975680384,0.07460153,67086.0,67079.0,0.00152]
[1772975680592,0.07460153,67086.0,67077.0,0.07454092]
[1772975680836,7.001e-05,67086.0,67080.0,0.00152]
[1772975681222,7.001e-05,67086.0,67081.0,0.00152]
[1772975681745,7.001e-05,67086.0,67082.0,0.00152]
[1772975682262,7.001e-05,67086.0,67083.0,0.00152]
[1772975682798,7.001e-05,67086.0,67084.0,0.00152]
[1772975683530,7.001e-05,67086.0,67084.0,0.00159058]
[1772975683740,7.001e-05,67086.0,67084.0,7.058e-05]
[1772975683937,0.00107001,67086.0,67085.0,0.00152]
[1772975684248,0.00107001,67086.0,67085.0,0.0016394]
[1772975684501,0.00107001,67086.0,67085.0,0.00152]
[1772975684730,7.001e-05,67086.0,67076.0,0.10765209]
[1772975684944,7.001e-05,67086.0,67077.0,0.00152]
[1772975685156,0.0420443,67085.0,67064.0,0.03311083]
[1772975685325,0.00107001,67086.0,67059.0,0.03931713]
[1772975685326,0.00152,67084.0,67059.0,0.07456069]
[1772975685485,0.0420443,67083.0,67060.0,0.03463083]
[1772975686295,7.001e-05,67086.0,67060.0,0.03463083]
[1772975686296,0.0420443,67081.0,67060.0,0.03463083]
[1772975686506,0.0420443,67081.0,67062.0,0.03931713]
[1772975686705,0.00152,67082.0,67060.0,0.00152]
[1772975686706,0.00152,67082.0,67064.0,0.03931713]
[1772975686928,0.07453675,67081.0,67067.0,0.03311083]
[1772975687157,0.07453675,67081.0,67068.0,0.00152]
[1772975688262,0.0420443,67080.0,67068.0,0.00152]
[1772975688483,0.0420443,67080.0,67069.0,0.00152]
[1772975688689,0.0420443,67080.0,67063.0,0.03311083]
[1772975688919,0.0420443,67078.0,67064.0,0.00152]
[1772975689331,0.0420443,67078.0,67065.0,0.00152]
[1772975689556,0.0420443,67078.0,67064.0,0.00152]
[1772975690142,0.0420443,67078.0,67061.0,0.07455884]
[1772975690370,0.0420443,67078.0,67006.0,0.59342579]
[1772975690371,0.0420443,67078.0,66975.0,0.0004]